fUST/lending_fUST_20240611
["ID","MTS","AMOUNT","RATE_DAILY","PERIOD"]
[329002050,1718052655385,-775.31,0.00021095,2]
[329002051,1718052655396,-151.0,0.00021095,2]
[329002052,1718052655408,-530.44,0.00021095,2]
[329002053,1718052655418,-151.0,0.00021095,2]
[329002054,1718052655428,-500.0,0.00021095,2]
[329002055,1718052655439,-500.0,0.00021095,2]
[329002056,1718052655450,-500.0,0.00021095,2]
[329002057,1718052655460,-2329.38,0.00021095,2]
[329002058,1718052655471,-151.0,0.00021095,2]
[329002059,1718052655481,-500.0,0.00021095,2]
[329002060,1718052655493,-1250.9,0.00021095,2]
[329002061,1718052655503,-770.52,0.00021095,2]
[329002062,1718052655514,-8595.25,0.00021095,2]
[329002063,1718052655524,-500.0,0.00021095,2]
[329002064,1718052655534,-500.0,0.00021095,2]
[329002065,1718052655545,-584.79,0.00021095,2]
[329002066,1718052655556,-1738.65,0.00021095,2]
[329002067,1718052655568,-757.13,0.00021095,2]
[329002068,1718052655578,-2839.78,0.00021095,2]
[329002069,1718052655588,-1442.08,0.00021095,2]
[329002070,1718052655598,-937.13,0.00021095,2]
[329002071,1718052655608,-710.15,0.00021095,2]
[329002072,1718052655618,-2815.85,0.00021095,2]
[329002073,1718052655629,-500.0,0.00021095,2]
[329002074,1718052655639,-500.0,0.00021095,2]
[329002075,1718052655651,-442.99688106,0.00021095,2]
[329002076,1718052655661,-665.8,0.00021095,2]
[329002077,1718052655671,-500.0,0.00021095,2]
[329002078,1718052655682,-604.2,0.00021095,2]
[329002079,1718052655697,-500.0,0.00021095,2]
[329002080,1718052655708,-1467.93,0.00021095,2]
[329002081,1718052655718,-500.0,0.00021095,2]
[329002082,1718052655728,-1151.2,0.00021095,2]
[329002083,1718052655739,-844.12,0.00021095,2]
[329002084,1718052655749,-499.0,0.00021245,2]
[329002085,1718052655759,-500.0,0.00021369,2]
[329002086,1718052655770,-500.0,0.00021369,2]
[329002087,1718052655783,-500.0,0.00021369,2]
[329002088,1718052655794,-500.0,0.00021369,2]
[329002089,1718052655804,-500.0,0.00021369,2]
[329002090,1718052655814,-500.0,0.00021369,2]
[329002091,1718052655827,-500.0,0.00021369,2]
[329002092,1718052655837,-289.16,0.00021369,2]
[329002093,1718052655847,-527.34,0.00021369,2]
[329002094,1718052655858,-500.0,0.00021369,2]
[329002095,1718052655868,-775.31,0.00021369,2]
[329002096,1718052655879,-231.26,0.00021369,2]
[329002097,1718052655890,-500.0,0.00021369,2]
[329002098,1718052655900,-500.0,0.00021369,2]
[329002099,1718052655911,-2329.38,0.00021369,2]
[329002100,1718052655921,-151.0,0.00021369,2]
[329002101,1718052655932,-500.0,0.00021369,2]
[329002102,1718052655943,-1250.9,0.00021369,2]
[329002103,1718052655953,-770.52,0.00021369,2]
[329002104,1718052655964,-8595.25,0.00021369,2]
[329002105,1718052655975,-500.0,0.00021369,2]
[329002106,1718052655985,-500.0,0.00021369,2]
[329002107,1718052655996,-584.79,0.00021369,2]
[329002108,1718052656006,-1738.65,0.00021369,2]
[329002109,1718052656016,-757.13,0.00021369,2]
[329002110,1718052656027,-151.0,0.00021369,2]
[329002111,1718052656038,-2839.78,0.00021369,2]
[329002112,1718052656048,-1442.08,0.00021369,2]
[329002113,1718052656059,-937.13,0.00021369,2]
[329002114,1718052656070,-710.15,0.00021369,2]
[329002115,1718052656080,-2815.85,0.00021369,2]
[329002116,1718052656091,-233.48555899,0.00021369,2]
[329002117,1718052656101,-500.0,0.00021369,2]
[329002118,1718052656112,-665.8,0.00021369,2]
[329002119,1718052656122,-500.0,0.00021369,2]
[329002120,1718052656134,-604.2,0.00021369,2]
[329002121,1718052656145,-500.0,0.00021369,2]
[329002122,1718052656156,-1467.93,0.00021369,2]
[329002123,1718052656166,-500.0,0.00021369,2]
[329002124,1718052656177,-1151.2,0.00021369,2]
[329002125,1718052656188,-844.12,0.00021369,2]
[329002126,1718052656198,-282.2,0.00021379,5]
[329002127,1718052656208,-153.0,0.00021425,2]
[329002128,1718052656218,-153.0,0.00021425,2]
[329002129,1718052656229,-15454.60786581,0.00021643,15]
[329002130,1718052776783,3655.03361164,9.999e-05,2]
[329002131,1718052973400,155.01395126,9.999e-05,2]
[329002132,1718053051564,19310.35738549,9.999e-05,2]
[329002133,1718053199332,774.62239813,9.999e-05,2]
[329002134,1718053518601,1139.2171253,0.00012942,2]
[329002135,1718053747885,426.56540344,0.00013714,2]
[329002197,1718053833414,-182.3567571,0.00017118,2]
[329002199,1718053833424,-180.67046992,0.00017256,2]
[329002201,1718053833434,-300.0,0.00017257,2]
[329002203,1718053833444,-300.0,0.00017257,2]
[329002205,1718053833454,-12058.3896358,0.00017258,2]
[329002207,1718053833463,-206.5414472,0.00017405,2]
[329002222,1718053833598,-152.68719635,0.00018185,2]
[329002224,1718053833608,-883.51735295,0.00018188,2]
[329002226,1718053833618,-2909.84206115,0.00018285,4]
[329002228,1718053833627,-204.81434597,0.00018285,2]
[329002230,1718053833637,-173.93827808,0.00018285,2]
[329002232,1718053833646,-1155.63089272,0.00018285,2]
[329002234,1718053833656,-481.20967163,0.00018285,2]
[329002236,1718053833666,-282.66579838,0.00018286,2]
[329002238,1718053833676,-155.01751066,0.00018287,2]
[329002240,1718053833686,-156.28239737,0.00018287,2]
[329002242,1718053833696,-3071.27011912,0.00018287,2]
[329002244,1718053833707,-775.76303521,0.00018287,2]
[329002246,1718053833717,-391.90089404,0.00018287,2]
[329002248,1718053833727,-209.17920224,0.00018287,2]
[329002250,1718053833737,-310.01240407,0.00018287,2]
[329002252,1718053833748,-774.10443301,0.00018287,2]
[329002254,1718053833757,-156.94169323,0.00018287,2]
[329002255,1718053833767,-1342.02915058,0.00018287,2]
[329002256,1718053833777,-786.67175703,0.00018287,2]
[329002257,1718053833789,-2419.75834322,0.00018287,2]
[329002259,1718053833801,-974.56370931,0.00018287,2]
[329002265,1718053839437,-10771.71367145,0.00018287,2]
[329002267,1718053839446,-792.79352193,0.00018288,2]
[329002269,1718053839459,-743.21226111,0.00018288,2]
[329002271,1718053839469,-194.55918582,0.00018288,2]
[329002273,1718053839478,-7692.79485561,0.00018288,2]
[329002275,1718053839488,-420.0,0.00018983,2]
[329002277,1718053839498,-368.46864157,0.00019078,2]
[329002279,1718053839508,-368.46864153,0.00019147,2]
[329002281,1718053839517,-724.02,0.00019168,3]
[329002283,1718053839527,-401.08,0.00019168,3]
[329002285,1718053839537,-155.02986212,0.00019174,2]
[329002287,1718053839546,-9217.20122377,0.00019176,2]
[329002289,1718053839556,-12935.6745065,0.00019178,15]
[329002290,1718053839566,-243.1555747,0.00019178,2]
[329002291,1718053839575,-500.0,0.00019178,2]
[329002292,1718053839585,-539.018507,0.00019178,2]
[329002293,1718053839595,-500.0,0.00019178,2]
[329002294,1718053839605,-500.0,0.00019178,2]
[329002295,1718053839615,-500.0,0.00019178,2]
[329002296,1718053839625,-500.0,0.00019178,2]
[329002297,1718053839637,-500.0,0.00019178,2]
[329002298,1718053839647,-500.0,0.00019178,2]
[329002299,1718053839657,-500.0,0.00019178,2]
[329002300,1718053839667,-500.0,0.00019178,2]
[329002301,1718053839677,-500.0,0.00019178,2]
[329002302,1718053839687,-500.0,0.00019178,2]
[329002303,1718053839698,-500.0,0.00019178,2]
[329002304,1718053839708,-500.0,0.00019178,2]
[329002305,1718053839719,-500.0,0.00019178,2]
[329002306,1718053839728,-500.0,0.00019178,2]
[329002307,1718053839738,-500.0,0.00019178,4]
[329002308,1718053839749,-500.0,0.00019178,2]
[329002309,1718053839759,-500.0,0.00019178,2]
[329002310,1718053839769,-500.0,0.00019178,2]
[329002311,1718053839779,-500.0,0.00019178,2]
[329002312,1718053839790,-500.0,0.00019178,2]
[329002313,1718053839800,-500.0,0.00019178,2]
[329002314,1718053839810,-500.0,0.00019178,2]
[329002315,1718053839820,-500.0,0.00019178,2]
[329002316,1718053839830,-500.0,0.00019178,2]
[329002317,1718053839840,-500.0,0.00019178,2]
[329002318,1718053839850,-500.0,0.00019178,2]
[329002319,1718053839860,-500.0,0.00019178,2]
[329002320,1718053839870,-500.0,0.00019178,2]
[329002321,1718053839880,-500.0,0.00019178,2]
[329002322,1718053839892,-500.0,0.00019178,2]
[329002323,1718053839901,-500.0,0.00019178,2]
[329002324,1718053839911,-500.0,0.00019178,2]
[329002325,1718053839921,-508.30958498,0.00019178,2]
[329002326,1718053839931,-573.34651344,0.00019178,2]
[329002327,1718053839941,-500.0,0.00019178,2]
[329002328,1718053839951,-500.0,0.00019178,2]
[329002329,1718053839961,-156.29541656,0.00019178,2]
[329002330,1718053839971,-500.0,0.00019178,2]
[329002331,1718053839981,-500.0,0.00019178,2]
[329002332,1718053839991,-316.12955231,0.00019178,2]
[329002333,1718053840001,-500.0,0.00019178,2]
[329002334,1718053840011,-500.0,0.00019178,2]
[329002335,1718053840022,-500.0,0.00019178,2]
[329002336,1718053840032,-500.0,0.00019178,2]
[329002337,1718053840042,-405.09703491,0.00019178,2]
[329002338,1718053840052,-500.0,0.00019178,2]
[329002339,1718053840062,-500.0,0.00019178,2]
[329002340,1718053840072,-500.0,0.00019178,2]
[329002341,1718053840083,-500.0,0.00019178,2]
[329002342,1718053840097,-500.0,0.00019178,2]
[329002343,1718053840107,-500.0,0.00019178,2]
[329002344,1718053840118,-500.0,0.00019178,2]
[329002345,1718053840128,-500.0,0.00019178,2]
[329002346,1718053840141,-500.0,0.00019178,2]
[329002347,1718053840151,-500.0,0.00019178,2]
[329002348,1718053840162,-500.0,0.00019178,2]
[329002349,1718053840174,-500.0,0.00019178,2]
[329002350,1718053840184,-500.0,0.00019178,2]
[329002351,1718053840194,-500.0,0.00019178,2]
[329002352,1718053840204,-500.0,0.00019178,2]
[329002353,1718053840214,-546.40192311,0.00019178,2]
[329002354,1718053840224,-500.0,0.00019178,2]
[329002355,1718053840234,-500.0,0.00019178,2]
[329002356,1718053840244,-500.0,0.00019178,2]
[329002357,1718053840254,-500.0,0.00019178,2]
[329002358,1718053840265,-500.0,0.00019178,2]
[329002359,1718053840275,-500.0,0.00019178,2]
[329002360,1718053840285,-173.82094932,0.00019178,2]
[329002361,1718053840295,-500.0,0.00019178,2]
[329002362,1718053840305,-500.0,0.00019178,2]
[329002363,1718053840315,-500.0,0.00019178,2]
[329002364,1718053840325,-500.0,0.00019178,2]
[329002365,1718053840336,-500.0,0.00019178,2]
[329002366,1718053840346,-500.0,0.00019178,2]
[329002367,1718053840356,-168.3476304,0.00019178,2]
[329002368,1718053840366,-500.0,0.00019178,2]
[329002369,1718053840375,-500.0,0.00019178,2]
[329002370,1718053840387,-500.0,0.00019178,2]
[329002371,1718053840397,-500.0,0.00019178,2]
[329002372,1718053840406,-500.0,0.00019178,2]
[329002373,1718053840416,-500.0,0.00019178,2]
[329002374,1718053840427,-500.0,0.00019178,2]
[329002375,1718053840437,-500.0,0.00019178,2]
[329002376,1718053840446,-500.0,0.00019178,2]
[329002377,1718053840456,-500.0,0.00019178,2]
[329002378,1718053840466,-500.0,0.00019178,2]
[329002379,1718053840475,-500.0,0.00019178,2]
[329002380,1718053840485,-500.0,0.00019178,2]
[329002381,1718053840494,-500.0,0.00019178,2]
[329002382,1718053840504,-500.0,0.00019178,2]
[329002383,1718053840514,-500.0,0.00019178,2]
[329002384,1718053840524,-500.0,0.00019178,2]
[329002385,1718053840534,-500.0,0.00019178,2]
[329002386,1718053840546,-500.0,0.00019178,2]
[329002387,1718053840556,-500.0,0.00019178,2]
[329002388,1718053840567,-500.0,0.00019178,2]
[329002389,1718053840578,-500.0,0.00019178,2]
[329002390,1718053840588,-500.0,0.00019178,2]
[329002391,1718053840598,-326.81676017,0.00019178,2]
[329002392,1718053840608,-500.0,0.00019178,2]
[329002393,1718053840617,-500.0,0.00019178,2]
[329002394,1718053840627,-500.0,0.00019178,2]
[329002395,1718053840638,-500.0,0.00019178,2]
[329002396,1718053840648,-546.34061276,0.00019178,2]
[329002397,1718053840658,-516.56392276,0.00019178,2]
[329002398,1718053840668,-500.0,0.00019178,2]
[329002399,1718053840680,-500.0,0.00019178,2]
[329002400,1718053840690,-500.0,0.00019178,2]
[329002401,1718053840700,-500.0,0.00019178,2]
[329002402,1718053840710,-500.0,0.00019178,2]
[329002403,1718053840720,-484.40192052,0.00019178,2]
[329002404,1718053840730,-500.0,0.00019178,2]
[329002405,1718053840739,-500.0,0.00019178,2]
[329002406,1718053840749,-500.0,0.00019178,2]
[329002407,1718053840758,-500.0,0.00019178,2]
[329002408,1718053840768,-500.0,0.00019178,2]
[329002409,1718053840778,-500.0,0.00019178,2]
[329002410,1718053840789,-216.59362082,0.00019178,2]
[329002411,1718053840799,-500.0,0.00019178,2]
[329002412,1718053840809,-500.0,0.00019178,2]
[329002413,1718053840819,-500.0,0.00019178,2]
[329002414,1718053840829,-508.24968099,0.00019178,2]
[329002415,1718053840840,-508.55428627,0.00019178,2]
[329002416,1718053840849,-500.0,0.00019178,2]
[329002417,1718053840860,-500.0,0.00019178,2]
[329002418,1718053840870,-500.0,0.00019178,2]
[329002419,1718053840880,-500.0,0.00019178,2]
[329002420,1718053840892,-500.0,0.00019178,2]
[329002421,1718053840902,-500.0,0.00019178,2]
[329002422,1718053840913,-500.0,0.00019178,2]
[329002423,1718053840923,-500.0,0.00019178,2]
[329002424,1718053840932,-500.0,0.00019178,2]
[329002425,1718053840943,-500.0,0.00019178,2]
[329002426,1718053840953,-500.0,0.00019178,2]
[329002427,1718053840963,-500.0,0.00019178,2]
[329002428,1718053840973,-500.0,0.00019178,2]
[329002429,1718053840984,-500.0,0.00019178,2]
[329002430,1718053840993,-500.0,0.00019178,2]
[329002431,1718053841003,-500.0,0.00019178,2]
[329002432,1718053841013,-500.0,0.00019178,2]
[329002433,1718053841022,-500.0,0.00019178,2]
[329002434,1718053841032,-500.0,0.00019178,2]
[329002435,1718053841042,-500.0,0.00019178,2]
[329002436,1718053841052,-500.0,0.00019178,2]
[329002437,1718053841062,-500.0,0.00019178,2]
[329002438,1718053841072,-500.0,0.00019178,2]
[329002439,1718053841083,-605.7,0.00019178,2]
[329002440,1718053841096,-500.0,0.00019178,2]
[329002441,1718053841106,-500.0,0.00019178,2]
[329002442,1718053841116,-509.12954843,0.00019178,2]
[329002443,1718053841126,-162.43162668,0.00019178,2]
[329002444,1718053841140,-500.0,0.00019178,2]
[329002445,1718053841150,-500.0,0.00019178,2]
[329002446,1718053841160,-500.0,0.00019178,2]
[329002447,1718053841172,-500.0,0.00019178,2]
[329002448,1718053841183,-500.0,0.00019178,2]
[329002449,1718053841193,-500.0,0.00019178,2]
[329002450,1718053841203,-434.07815919,0.00019178,2]
[329002451,1718053841214,-500.0,0.00019178,2]
[329002452,1718053841224,-500.0,0.00019178,2]
[329002453,1718053841233,-500.0,0.00019178,2]
[329002454,1718053841243,-500.0,0.00019178,2]
[329002455,1718053841253,-500.0,0.00019178,2]
[329002456,1718053841263,-433.23833091,0.00019178,2]
[329002457,1718053841273,-500.0,0.00019178,2]
[329002458,1718053841283,-500.0,0.00019178,2]
[329002459,1718053841293,-500.0,0.00019178,2]
[329002460,1718053841303,-500.0,0.00019178,2]
[329002461,1718053841313,-500.0,0.00019178,2]
[329002462,1718053841323,-500.0,0.00019178,2]
[329002463,1718053841332,-500.0,0.00019178,2]
[329002464,1718053841341,-500.0,0.00019178,2]
[329002465,1718053841351,-500.0,0.00019178,2]
[329002466,1718053841360,-500.0,0.00019178,2]
[329002467,1718053841370,-500.0,0.00019178,2]
[329002468,1718053841380,-500.0,0.00019178,2]
[329002469,1718053841391,-500.0,0.00019178,2]
[329002470,1718053841401,-547.41361935,0.00019178,2]
[329002471,1718053841411,-500.0,0.00019178,2]
[329002472,1718053841421,-500.0,0.00019178,2]
[329002473,1718053841431,-500.0,0.00019178,2]
[329002474,1718053841441,-500.0,0.00019178,2]
[329002475,1718053841451,-500.0,0.00019178,2]
[329002476,1718053841460,-500.0,0.00019178,2]
[329002477,1718053841469,-500.0,0.00019178,2]
[329002478,1718053841479,-500.0,0.00019178,2]
[329002479,1718053841488,-500.0,0.00019178,2]
[329002480,1718053841498,-500.0,0.00019178,2]
[329002481,1718053841507,-500.0,0.00019178,2]
[329002482,1718053841516,-500.0,0.00019178,2]
[329002483,1718053841526,-558.07,0.00019178,2]
[329002484,1718053841536,-500.0,0.00019178,2]
[329002485,1718053841545,-500.0,0.00019178,2]
[329002486,1718053841555,-500.0,0.00019178,2]
[329002487,1718053841565,-500.0,0.00019178,2]
[329002488,1718053841574,-500.0,0.00019178,2]
[329002489,1718053841584,-932.68,0.00019178,2]
[329002490,1718053841594,-500.0,0.00019178,2]
[329002491,1718053841604,-500.0,0.00019178,2]
[329002492,1718053841614,-1759.45,0.00019178,2]
[329002493,1718053841624,-500.0,0.00019178,2]
[329002494,1718053841634,-500.0,0.00019178,2]
[329002495,1718053841643,-498.82891688,0.00019178,2]
[329002496,1718053841653,-500.0,0.00019178,2]
[329002497,1718053841662,-249.5446134,0.00019178,2]
[329002498,1718053841671,-500.0,0.00019178,2]
[329002499,1718053841681,-500.0,0.00019178,2]
[329002500,1718053841691,-500.0,0.00019178,2]
[329002501,1718053841700,-500.0,0.00019178,2]
[329002502,1718053841710,-500.0,0.00019178,2]
[329002503,1718053841720,-500.0,0.00019178,2]
[329002504,1718053841729,-500.0,0.00019178,2]
[329002505,1718053841739,-500.0,0.00019178,2]
[329002506,1718053841748,-500.0,0.00019178,2]
[329002507,1718053841757,-443.51637522,0.00019178,2]
[329002508,1718053841766,-500.0,0.00019178,2]
[329002509,1718053841776,-563.14,0.00019178,2]
[329002510,1718053841785,-500.0,0.00019178,2]
[329002511,1718053841794,-500.0,0.00019178,2]
[329002512,1718053841803,-500.0,0.00019178,2]
[329002513,1718053841813,-500.0,0.00019178,2]
[329002514,1718053841822,-500.0,0.00019178,2]
[329002515,1718053841833,-500.0,0.00019178,2]
[329002516,1718053841842,-6134.59,0.00019178,2]
[329002517,1718053841851,-500.0,0.00019178,2]
[329002518,1718053841861,-658.31,0.00019178,2]
[329002519,1718053841870,-500.0,0.00019178,2]
[329002520,1718053841879,-500.0,0.00019178,2]
[329002521,1718053841890,-500.0,0.00019178,2]
[329002522,1718053841900,-500.0,0.00019178,2]
[329002523,1718053841911,-500.0,0.00019178,2]
[329002524,1718053841920,-416.76362656,0.00019178,2]
[329002525,1718053841930,-500.0,0.00019178,2]
[329002526,1718053841940,-500.0,0.00019178,2]
[329002527,1718053842076,-500.0,0.00019178,2]
[329002528,1718053842088,-506.87354775,0.00019178,2]
[329002529,1718053842099,-500.0,0.00019178,2]
[329002530,1718053842110,-1968.58,0.00019178,2]
[329002531,1718053842120,-500.0,0.00019178,2]
[329002532,1718053842132,-1050.0,0.00019178,2]
[329002533,1718053842143,-500.0,0.00019178,2]
[329002534,1718053842153,-500.0,0.00019178,2]
[329002535,1718053842162,-500.0,0.00019178,2]
[329002536,1718053842174,-500.0,0.00019178,2]
[329002537,1718053842185,-500.0,0.00019178,2]
[329002538,1718053842195,-500.0,0.00019178,2]
[329002539,1718053842205,-545.33487208,0.00019178,2]
[329002540,1718053842215,-645.59,0.00019178,2]
[329002541,1718053842225,-500.0,0.00019178,2]
[329002542,1718053842236,-154.68006968,0.00019178,2]
[329002543,1718053842247,-500.0,0.00019178,2]
[329002544,1718053842257,-500.0,0.00019178,2]
[329002545,1718053842267,-500.0,0.00019178,2]
[329002546,1718053842278,-500.0,0.00019178,2]
[329002547,1718053842288,-500.0,0.00019178,2]
[329002548,1718053842298,-500.0,0.00019178,2]
[329002549,1718053842309,-1000.0,0.00019178,2]
[329002550,1718053842319,-500.0,0.00019178,2]
[329002551,1718053842330,-500.0,0.00019178,2]
[329002552,1718053842340,-500.0,0.00019178,2]
[329002553,1718053842351,-519.92442636,0.00019178,2]
[329002554,1718053842361,-500.0,0.00019178,2]
[329002555,1718053842371,-500.0,0.00019178,2]
[329002556,1718053842381,-500.0,0.00019178,2]
[329002557,1718053842393,-500.0,0.00019178,2]
[329002558,1718053842403,-500.0,0.00019178,2]
[329002559,1718053842412,-2085.89,0.00019178,2]
[329002560,1718053842422,-500.0,0.00019178,2]
[329002561,1718053842432,-500.0,0.00019178,2]
[329002562,1718053842442,-500.0,0.00019178,2]
[329002563,1718053842453,-500.0,0.00019178,2]
[329002564,1718053842462,-500.0,0.00019178,2]
[329002565,1718053842473,-500.0,0.00019178,2]
[329002566,1718053842483,-500.0,0.00019178,2]
[329002567,1718053842492,-500.0,0.00019178,2]
[329002568,1718053842502,-500.0,0.00019178,2]
[329002569,1718053842512,-500.0,0.00019178,2]
[329002570,1718053842522,-500.0,0.00019178,2]
[329002571,1718053842533,-500.0,0.00019178,2]
[329002572,1718053842544,-500.0,0.00019178,2]
[329002573,1718053842554,-500.0,0.00019178,2]
[329002574,1718053842563,-500.0,0.00019178,2]
[329002575,1718053842575,-500.0,0.00019178,2]
[329002576,1718053842585,-500.0,0.00019178,2]
[329002577,1718053842596,-500.0,0.00019178,2]
[329002578,1718053842606,-500.0,0.00019178,2]
[329002579,1718053842616,-500.0,0.00019178,2]
[329002580,1718053842626,-1019.35,0.00019178,2]
[329002581,1718053842638,-500.0,0.00019178,2]
[329002582,1718053842648,-500.0,0.00019178,2]
[329002583,1718053842659,-500.0,0.00019178,2]
[329002584,1718053842669,-500.0,0.00019178,2]
[329002585,1718053842679,-1668.53,0.00019178,2]
[329002586,1718053842689,-1668.53,0.00019178,2]
[329002587,1718053842701,-1668.53,0.00019178,2]
[329002589,1718053842711,-1668.53,0.00019178,2]
[329002591,1718053842721,-500.0,0.00019178,2]
[329002592,1718053842732,-1668.53,0.00019178,2]
[329002593,1718053842742,-1668.53,0.00019178,2]
[329002594,1718053842753,-792.6,0.00019178,2]
[329002595,1718053842763,-500.0,0.00019178,2]
[329002596,1718053842773,-500.0,0.00019178,2]
[329002597,1718053842784,-500.0,0.00019178,2]
[329002598,1718053842799,-500.0,0.00019178,2]
[329002599,1718053842809,-500.0,0.00019178,2]
[329002600,1718053842819,-500.0,0.00019178,2]
[329002601,1718053842829,-583.58,0.00019178,2]
[329002602,1718053842838,-500.0,0.00019178,2]
[329002603,1718053842849,-541.43,0.00019178,2]
[329002604,1718053842859,-541.43,0.00019178,2]
[329002605,1718053842869,-541.43,0.00019178,2]
[329002606,1718053842879,-541.43,0.00019178,2]
[329002607,1718053842892,-500.0,0.00019178,2]
[329002608,1718053842903,-500.0,0.00019178,2]
[329002609,1718053842913,-500.0,0.00019178,2]
[329002610,1718053842923,-500.0,0.00019178,2]
[329002611,1718053842933,-500.0,0.00019178,2]
[329002612,1718053842943,-500.0,0.00019178,2]
[329002613,1718053842953,-500.0,0.00019178,2]
[329002614,1718053842963,-160.194329,0.00019178,2]
[329002615,1718053842973,-368.46864153,0.00019215,2]
[329002616,1718053842983,-231.33656718,0.00019269,2]
[329002617,1718053842993,-368.46864153,0.00019284,2]
[329002618,1718053843004,-500.0,0.00019351,2]
[329002619,1718053843014,-272.23,0.00019351,2]
[329002620,1718053843024,-368.46864153,0.00019352,2]
[329002621,1718053843034,-10506.24693024,0.00019352,2]
[329002622,1718053843045,-2000.0,0.00019352,2]
[329002623,1718053843055,-88888.0,0.00019352,2]
[329002624,1718053843065,-541.43,0.0001945,2]
[329002625,1718053843075,-500.0,0.00019451,2]
[329002626,1718053843086,-500.0,0.00019451,2]
[329002627,1718053843100,-1668.53,0.00019451,2]
[329002628,1718053843110,-1668.53,0.00019451,2]
[329002629,1718053843121,-1668.53,0.00019451,2]
[329002630,1718053843132,-541.43,0.00019451,2]
[329002631,1718053843143,-541.43,0.00019451,2]
[329002632,1718053843153,-500.0,0.00019452,2]
[329002633,1718053843163,-500.0,0.00019452,2]
[329002634,1718053843173,-500.0,0.00019452,2]
[329002635,1718053843184,-500.0,0.00019452,2]
[329002636,1718053843194,-500.0,0.00019452,2]
[329002637,1718053843204,-500.0,0.00019452,2]
[329002638,1718053843214,-500.0,0.00019452,2]
[329002639,1718053843224,-500.0,0.00019452,2]
[329002640,1718053843234,-459.23573844,0.00019452,2]
[329002641,1718053843244,-500.0,0.00019452,2]
[329002642,1718053843254,-500.0,0.00019452,2]
[329002643,1718053843264,-525.58902025,0.00019452,2]
[329002644,1718053843277,-500.0,0.00019452,2]
[329002645,1718053843287,-500.0,0.00019452,2]
[329002646,1718053843297,-500.0,0.00019452,2]
[329002647,1718053843307,-500.0,0.00019452,2]
[329002648,1718053843317,-500.0,0.00019452,2]
[329002651,1718053843327,-500.0,0.00019452,2]
[329002653,1718053843336,-500.0,0.00019452,2]
[329002655,1718053843346,-500.0,0.00019452,2]
[329002657,1718053843356,-500.0,0.00019452,2]
[329002658,1718053843366,-500.0,0.00019452,2]
[329002659,1718053843376,-500.0,0.00019452,2]
[329002660,1718053843387,-500.0,0.00019452,2]
[329002661,1718053843397,-500.0,0.00019452,2]
[329002662,1718053843407,-500.0,0.00019452,2]
[329002663,1718053843417,-500.0,0.00019452,2]
[329002664,1718053843428,-500.0,0.00019452,2]
[329002665,1718053843438,-500.0,0.00019452,2]
[329002666,1718053843448,-500.0,0.00019452,2]
[329002667,1718053843458,-500.0,0.00019452,2]
[329002668,1718053843468,-500.0,0.00019452,2]
[329002669,1718053843478,-500.0,0.00019452,2]
[329002670,1718053843488,-500.0,0.00019452,2]